fUSD/lending_fUSD_20241009
["ID","MTS","AMOUNT","RATE_DAILY","PERIOD"]
[340087364,1728495038576,-160.03255757,0.00010999,2]
[340087366,1728495038586,-635.0,0.00011,2]
[340087367,1728495038595,-1885224.19356259,0.00011,2]
[340087368,1728495038606,-1737457.55076729,0.00011,2]
[340087369,1728495038619,-90716.44994514,0.00011,2]
[340087370,1728495038630,-4304.35392459,0.00011,2]
[340087371,1728495038640,-73007.60777412,0.00011,2]
[340087372,1728495038651,-15382.51737801,0.00011,2]
[340087373,1728495038663,-667.76472037,0.00011,2]
[340087374,1728495038675,-326.82220256,0.00011,2]
[340087375,1728495038686,-288.01157387,0.00011,2]
[340087382,1728495039650,-262.2143,0.0001049,2]
[340087383,1728495039661,-2214.33039649,0.00011,2]
[340087384,1728495039761,-300.0,0.00011,2]
[340087385,1728495040040,-424.80496086,0.00011,2]
[340087401,1728495042713,-639.59,0.00011,2]
[340087402,1728495042989,-619.13,0.00011,2]
[340087403,1728495043048,-900.0,0.00011,2]
[340087413,1728495045594,-259.80321216,0.00011,2]
[340087416,1728495045652,-319.19678784,0.00011,2]
[340087417,1728495045661,-13787.41529416,0.00011,2]
[340087418,1728495045819,-12407.3652,0.00011,2]
[340087419,1728495045879,-362572.85901367,0.00011,2]
[340087423,1728495454071,20185.83,9.958e-05,2]
[340087424,1728495510473,605.88,9.018e-05,2]
[340087427,1728496231917,-250.0,0.00010246,2]
[340087428,1728496231928,-451.15,0.00010285,2]
[340087429,1728496231937,-173.38,0.00010286,2]
[340087430,1728496231947,-840.0,0.00010314,2]
[340087431,1728496231956,-250.0,0.00010373,2]
[340087432,1728496231966,-300.0,0.00010472,2]
[340087433,1728496231975,-501.43560947,0.00010473,2]
[340087434,1728496231985,-500.0,0.00010473,2]
[340087435,1728496231994,-150.0,0.00010489,2]
[340087436,1728496232004,-373.9848807,0.0001049,2]
[340087437,1728496232019,-685.47845549,0.0001049,2]
[340087438,1728496232030,-272.47,0.0001049,2]
[340087439,1728496232042,-354.88,0.0001049,2]
[340087440,1728496232054,-2399.02256381,0.0001049,2]
[340087441,1728496232063,-200.97743618,0.0001049,2]
[340087443,1728496232075,-322.38932731,0.0001049,2]
[340087445,1728496232086,-8023.37232094,0.0001049,2]
[340087450,1728496237912,-1362.14790047,0.0001049,2]
[340087451,1728496237924,-585.41820824,0.0001049,2]
[340087452,1728496238023,-6014.824636,0.0001049,2]
[340087453,1728496238035,-1879.79073718,0.0001049,2]
[340087454,1728496238047,-845.57482597,0.0001049,2]
[340087455,1728496238059,-5403.3429348,0.0001049,2]
[340087456,1728496238084,-504.46416423,0.0001049,2]
[340087457,1728496238096,-24598.67570169,0.0001049,2]
[340087458,1728496238108,-570.23685725,0.0001049,2]
[340087459,1728496238120,-3667.84744974,0.0001049,2]
[340087460,1728496238131,-268.6748,0.0001049,2]
[340087461,1728496238140,-19396.87467165,0.0001049,2]
[340087462,1728496238152,-12186.12208425,0.0001049,2]
[340087463,1728496238165,-14986.1079083,0.0001049,2]
[340087464,1728496238176,-19584.17613878,0.0001049,2]
[340087465,1728496238188,-2564.7511365,0.0001049,2]
[340087466,1728496238199,-620.27204007,0.0001049,2]
[340087467,1728496238217,-1553.4252,0.0001049,2]
[340087468,1728496238229,-590.62314607,0.0001049,2]
[340087469,1728496238240,-726.22550044,0.0001049,2]
[340087470,1728496238251,-2289.53902093,0.0001049,2]
[340087471,1728496238263,-449.59669731,0.0001049,2]
[340087472,1728496238275,-463.74892683,0.0001049,2]
[340087473,1728496238286,-1220.78618031,0.0001049,2]
[340087474,1728496238297,-2856.54381969,0.0001049,2]
[340087475,1728496238309,-394.12782113,0.0001049,2]
[340087476,1728496238320,-974.16207443,0.0001049,2]
[340087477,1728496238331,-399.08923112,0.0001049,2]
[340087478,1728496238342,-3006.44051846,0.0001049,2]
[340087479,1728496238354,-7442.804616,0.0001049,2]
[340087480,1728496238365,-2128.81835697,0.0001049,2]
[340087481,1728496238378,-720.62291816,0.0001049,2]
[340087482,1728496238388,-8454.34726806,0.0001049,2]
[340087483,1728496238399,-10898.63709996,0.0001049,2]
[340087490,1728496242980,-0.50523451,0.0001049,2]
[340087492,1728496245781,-11390.68740402,0.0001049,2]
[340087493,1728496245893,-5798.71108862,0.0001049,2]
[340087494,1728496245952,-949.65,0.0001049,2]
[340087495,1728496245963,-10321.57815525,0.0001049,2]
[340087496,1728496245974,-6138.4358,0.0001049,2]
[340087497,1728496246065,-273.18016177,0.0001049,2]
[340087498,1728496246076,-3807.00947184,0.0001049,2]
[340087499,1728496246087,-263.86078829,0.0001049,2]
[340087500,1728496246098,-6134.45000001,0.0001049,2]
[340087530,1728496260688,655.33,8.661e-05,2]
[340087531,1728496505871,200.0,0.00010125,2]
[340087532,1728496667845,170.51932731,0.00010174,2]
[340087533,1728496757047,646.79,8.219e-05,2]
[340087534,1728496766747,250.0,9.997e-05,2]
[340087535,1728496822634,225.84,0.00010115,2]
[340087536,1728496833247,182.2,0.00010087,2]
[340087537,1728496839255,1000.0,0.00010061,2]
[340087538,1728496863344,3572.46,0.00010052,2]
[340087539,1728496871870,250.0,0.00010004,2]
[340087540,1728497013566,23890.0,0.00010085,2]
[340087546,1728497333523,200.0,9.964e-05,2]
[340087547,1728497335135,637.47,8.226e-05,2]
[340087548,1728497350171,1466.786944,0.00010219,2]
[340087549,1728497369174,336.44,9.942e-05,2]
[340087550,1728497369649,225.84,0.00010143,2]
[340087554,1728497414948,250.0,9.93e-05,2]
[340087562,1728497431991,-200.9,0.00010271,2]
[340087564,1728497432000,-300.0,0.00010289,2]
[340087566,1728497432010,-99.19293378,0.0001029,2]
[340087568,1728497432022,-661.83076547,0.0001029,2]
[340087570,1728497432033,-687.39690075,0.0001029,2]
[340087572,1728497432043,-1042.0,0.000103,2]
[340087574,1728497432054,-1543.70522371,0.000103,2]
[340087577,1728497432065,-454.92529219,0.000103,2]
[340087579,1728497432076,-1356.19569135,0.000103,2]
[340087581,1728497432087,-951.22869428,0.000103,2]
[340087583,1728497432099,-984.09450233,0.000103,2]
[340087585,1728497432110,-1182.71091713,0.000103,2]
[340087588,1728497432126,-1392.30862251,0.000103,2]
[340087590,1728497432135,-500.0,0.00010373,2]
[340087591,1728497432145,-150.0,0.00010389,2]
[340087592,1728497432154,-1000.0,0.0001039,2]
[340087593,1728497432163,-41.69137749,0.0001039,2]
[340087595,1728497432179,-14979.36600419,0.0001039,2]
[340087598,1728497432190,-48725.10715254,0.0001039,2]
[340087600,1728497432201,-607.27361454,0.0001039,2]
[340087602,1728497432216,-3035.26203153,0.0001039,2]
[340087604,1728497432228,-8229.93919984,0.0001039,2]
[340087606,1728497432239,-24381.36061987,0.0001039,2]
[340087607,1728497432248,-500.0,0.0001039,2]
[340087609,1728497432257,-19118.00027957,0.0001039,2]
[340087611,1728497432268,-7874.3179034,0.0001039,2]
[340087613,1728497432280,-9189.45711703,0.0001039,2]
[340087614,1728497432289,-7594.8912,0.0001039,2]
[340087615,1728497432298,-550.9499,0.0001039,2]
[340087616,1728497432309,-637.47,0.0001049,2]
[340087617,1728497432320,-200.0,0.0001049,2]
[340087618,1728497432330,-814.1517825,0.0001049,2]
[340087619,1728497432342,-638.67272336,0.0001049,2]
[340087621,1728497432359,-377.39865896,0.0001049,2]
[340087623,1728497432370,-1934.31683518,0.0001049,2]
[340087625,1728497432379,-552.5,0.0001049,2]
[340087626,1728497432389,-299.99,0.0001049,2]
[340087627,1728497432401,-494.78,0.0001049,2]
[340087628,1728497432411,-499.99,0.000105,2]
[340087629,1728497432420,-200.0,0.00010595,2]
[340087630,1728497432429,-200.0,0.00010701,2]
[340087631,1728497432438,-87.32976154,0.00010808,2]
[340087632,1728497432449,-112.67023846,0.00010808,2]
[340087633,1728497432458,-151.0,0.0001089,2]
[340087634,1728497432467,-13.94043423,0.00010899,2]
[340087635,1728497432479,-811.58705088,0.00010899,2]
[340087636,1728497432489,-285.15071408,0.00010899,2]
[340087637,1728497432500,-540.376771,0.00010899,2]
[340087638,1728497432509,-697.663229,0.00010899,2]
[340087639,1728497432520,-127.86425608,0.00010899,2]
[340087640,1728497432529,-825.52748508,0.00010899,2]
[340087641,1728497432539,-825.52748508,0.00010899,2]
[340087642,1728497432548,-825.52748508,0.00010899,2]
[340087643,1728497432559,-825.52748508,0.00010899,2]
[340087644,1728497432568,-825.52748508,0.00010899,2]
[340087645,1728497432578,-825.52748508,0.00010899,2]
[340087646,1728497432587,-314.8176,0.000109,2]
[340087647,1728497432596,-3662.24554011,0.000109,2]
[340087648,1728497432607,-241337.75445989,0.000109,2]
[340087649,1728497432616,-173.34850153,0.000109,2]
[340087650,1728497432626,-158.59352518,0.000109,2]
[340087651,1728497432635,-825.52748508,0.000109,2]
[340087652,1728497432644,-183.86151123,0.000109,2]
[340087653,1728497432654,-183.86151122,0.000109,2]
[340087654,1728497432664,-183.86151122,0.000109,2]
[340087655,1728497432677,-183.86151122,0.000109,2]
[340087656,1728497432687,-268.91864884,0.000109,2]
[340087657,1728497432695,-315.1179724,0.000109,2]
[340087658,1728497432704,-200.0,0.00010916,2]
[340087659,1728497432714,-500.0,0.00010958,2]
[340087660,1728497432723,-500.0,0.00010958,2]
[340087661,1728497432732,-304.14536991,0.00010958,2]
[340087662,1728497432742,-162.13,0.00010959,2]
[340087663,1728497432753,-175.11,0.00010959,2]
[340087664,1728497432766,-242.03,0.00010959,2]
[340087665,1728497432780,-160.97,0.00010959,2]
[340087666,1728497432793,-444.4,0.00010959,2]
[340087667,1728497432807,-250.0,0.00010959,2]
[340087668,1728497432818,-186.64,0.00010959,2]
[340087669,1728497432834,-3857.61,0.00010959,2]
[340087670,1728497432846,-160.85905037,0.00010973,2]
[340087671,1728497432858,-500.0,0.00010973,2]
[340087672,1728497432869,-500.97073558,0.00010973,2]
[340087673,1728497432881,-500.73979238,0.00010973,2]
[340087674,1728497432893,-163.113,0.00010973,2]
[340087675,1728497432904,-168.75603806,0.0001099,2]
[340087676,1728497432916,-5225.7236436,0.00010995,2]
[340087677,1728497432927,-30878.0011617,0.00010995,2]
[340087678,1728497432940,-583.84962411,0.00010997,2]
[340087679,1728497432952,-385.272,0.00010999,2]
[340087680,1728497432963,-246.5929097,0.00010999,2]
[340087681,1728497432975,-648.0,0.00011,2]
[340087682,1728497432986,-335.28448432,0.00011,2]
[340087683,1728497433000,-535.511,0.00011,2]
[340087686,1728497438086,-5811.84764848,0.00011,2]
[340087687,1728497438099,-877.11585098,0.00011,2]
[340087688,1728497438112,-290.08119832,0.00011,2]
[340087689,1728497438124,-521.17192969,0.00011,2]
[340087690,1728497438136,-20820.71753437,0.00011,2]
[340087691,1728497438148,-250139.96678085,0.00011,2]
[340087692,1728497438165,-441.66001173,0.00011,2]
[340087693,1728497438182,-526.17759152,0.00011,2]
[340087694,1728497438212,-193345.85546065,0.00011,2]
[340087695,1728497438225,-319.24299861,0.00011,2]
[340087696,1728497438239,-2704.63123454,0.00011,2]
[340087697,1728497438253,-6736.76284974,0.00011,2]
[340087698,1728497438266,-843.77773422,0.00011,2]
[340087699,1728497438278,-39411.8479408,0.00011,2]
[340087700,1728497438291,-420.82015512,0.00011,2]
[340087701,1728497438309,-13346.76716289,0.00011,2]
[340087702,1728497438324,-480.0068938,0.00011,2]
[340087703,1728497438336,-14278.83820164,0.00011,2]
[340087704,1728497438349,-858.216,0.00011,2]
[340087705,1728497438362,-382.2205348,0.00011,2]
[340087706,1728497438374,-13157.2710806,0.00011,2]
[340087707,1728497438387,-440.1604635,0.00011,2]
[340087708,1728497438436,-775.44461026,0.00011,2]
[340087709,1728497438449,-4010.10564,0.00011,2]
[340087710,1728497438462,-3002.82669009,0.00011,2]
[340087711,1728497438473,-24059.66385186,0.00011,2]
[340087712,1728497438484,-1355.02815999,0.00011,2]
[340087713,1728497438495,-1698.91124941,0.00011,2]
[340087714,1728497438506,-325.59150971,0.00011,2]
[340087715,1728497438517,-669.980028,0.00011,2]
[340087716,1728497438528,-15034.0569413,0.00011,2]
[340087717,1728497438538,-5314.22404625,0.00011,2]
[340087718,1728497438723,-932.219486,0.00011,2]
[340087719,1728497438738,-10023.52651456,0.00011,2]
[340087722,1728497440101,-19775.32440629,0.00011,2]
[340087723,1728497440193,-129493.43830299,0.00011,2]
[340087724,1728497440205,-41799.56504663,0.00011,2]
[340087725,1728497440217,-252166.06130074,0.00011,2]
[340087726,1728497440287,-689.3870168,0.00011,2]
[340087727,1728497440299,-2821.15694343,0.00011,2]
[340087743,1728497443362,-579.0,0.00011,2]
[340087744,1728497443373,-321.0,0.00011,2]
[340087749,1728497446000,-437604.05476193,0.00011,2]
[340087750,1728497446013,-291.21894757,0.00011,2]
[340087751,1728497446165,-316.625,0.00011,2]
[340087752,1728497446177,-2059.33678768,0.00011,2]
[340087762,1728497529509,250.0,9.924e-05,2]
[340087763,1728497834750,840.0,0.00010061,2]
[340087764,1728497873948,360.92,0.00010058,2]
[340087765,1728497895531,153.15,0.00010062,2]
[340087766,1728497907735,250.0,0.00010071,2]
[340087767,1728497940827,826.91,8.219e-05,2]
[340087768,1728498118228,250.0,9.867e-05,2]
[340087769,1728498321494,509.72,0.00010233,2]
[340087770,1728498326962,150.0,9.888e-05,2]
[340087771,1728498368456,328.0,9.873e-05,2]
[340087772,1728498399171,153.15,9.873e-05,2]
[340087773,1728498432852,785.56,8.219e-05,2]
[340087774,1728498477406,750.0,0.0001,2]
[340087776,1728498527779,182.2,9.817e-05,2]
[340087777,1728498536765,250.0,9.817e-05,2]
[340087783,1728498632381,-161.15,0.00010321,2]
[340087784,1728498632390,-107.69375311,0.00010331,2]
[340087796,1728498638484,-53.45624689,0.00010331,2]
[340087797,1728498638494,-161.15,0.00010342,2]
[340087798,1728498638504,-126.25800153,0.00010352,2]
[340087799,1728498638518,-34.89199847,0.00010352,2]
[340087800,1728498638527,-161.15,0.00010362,2]
[340087801,1728498638537,-161.15,0.00010373,2]
[340087802,1728498638546,-785.56,0.00010466,2]
[340087803,1728498638557,-300.0,0.00010699,2]
[340087804,1728498638571,-150.0,0.00010727,2]
[340087805,1728498638581,-150.0,0.00010728,2]
[340087806,1728498638590,-150.0,0.0001073,2]
[340087807,1728498638599,-150.0,0.00010731,2]
[340087808,1728498638608,-499.99,0.00010732,2]
[340087809,1728498638618,-150.0,0.00010733,2]
[340087810,1728498638628,-150.0,0.00010734,2]
[340087811,1728498638637,-150.0,0.00010734,2]
[340087812,1728498638647,-150.0,0.00010734,2]
[340087813,1728498638656,-1085.78667031,0.00010735,2]
[340087814,1728498638668,-414.21332969,0.00010735,2]
[340087815,1728498638677,-1500.0,0.00010736,2]
[340087816,1728498638687,-72.76466121,0.00010739,2]
[340087840,1728498640255,-150.0,0.0001073,2]
[340087841,1728498640266,-77.23533879,0.00010739,2]
[340087842,1728498640276,-150.0,0.00010739,2]
[340087843,1728498640287,-150.0,0.0001074,2]
[340087844,1728498640297,-150.0,0.0001074,2]
[340087845,1728498640306,-150.0,0.00010741,2]
[340087846,1728498640316,-150.0,0.00010743,2]
[340087847,1728498640325,-1500.0,0.00010745,2]
[340087848,1728498640334,-150.0,0.00010745,2]
[340087849,1728498640343,-1500.0,0.00010751,2]
[340087850,1728498640354,-150.0,0.00010754,2]
[340087851,1728498640363,-24.15138921,0.00010756,2]
[340087852,1728498640380,-125.84861079,0.00010756,2]
[340087853,1728498640389,-368.84558921,0.00010756,2]
[340087854,1728498640401,-1131.15441079,0.00010756,2]
[340087855,1728498640411,-150.0,0.00010757,2]
[340087856,1728498640420,-150.0,0.00010757,2]
[340087857,1728498640429,-150.0,0.00010766,2]
[340087858,1728498640438,-491.56953866,0.00010767,2]
[340087859,1728498640447,-15.80219348,0.00010767,2]
[340087860,1728498640458,-134.19780652,0.00010767,2]
[340087861,1728498640469,-150.0,0.00010768,2]
[340087862,1728498640479,-150.0,0.00010768,2]
[340087863,1728498640488,-150.0,0.00010769,2]
[340087864,1728498640497,-150.0,0.00010772,2]
[340087865,1728498640507,-150.0,0.00010778,2]
[340087866,1728498640516,-150.0,0.00010779,2]
[340087867,1728498640524,-1500.0,0.0001078,2]
[340087868,1728498640535,-1500.0,0.0001078,2]
[340087869,1728498640544,-150.0,0.00010782,2]
[340087870,1728498640553,-150.0,0.00010783,2]
[340087871,1728498640563,-150.0,0.00010785,2]
[340087872,1728498640572,-150.0,0.00010786,2]
[340087874,1728498640581,-150.0,0.00010787,2]
[340087876,1728498640591,-1500.0,0.00010792,2]
[340087878,1728498640599,-150.0,0.00010794,2]
[340087880,1728498640609,-150.0,0.00010797,2]
[340087882,1728498640618,-150.0,0.00010797,2]
[340087884,1728498640627,-150.0,0.00010797,2]
[340087886,1728498640637,-150.0,0.00010799,2]
[340087888,1728498640646,-150.0,0.00010799,2]
[340087890,1728498640656,-150.0,0.00010799,2]
[340087892,1728498640666,-1861.52225349,0.000108,2]
[340087894,1728498640678,-1419.86021306,0.000108,2]
[340087898,1728498640703,-150.0,0.00010757,2]
[340087900,1728498640713,-69499.55663345,0.000108,2]
[340087902,1728498640722,-151.68958605,0.000108,2]
[340087904,1728498640731,-150.0,0.00010804,2]
[340087906,1728498640740,-150.0,0.00010805,2]
[340087908,1728498640749,-150.0,0.00010806,2]
[340087910,1728498640758,-150.0,0.00010807,2]
[340087912,1728498640768,-150.0,0.00010809,2]
[340087914,1728498640777,-150.0,0.00010809,2]
[340087916,1728498640786,-1500.0,0.0001081,2]
[340087918,1728498640796,-150.0,0.0001081,2]
[340087920,1728498640805,-150.0,0.00010811,2]
[340087922,1728498640815,-150.0,0.00010816,2]
[340087924,1728498640824,-150.0,0.00010817,2]
[340087925,1728498640833,-150.0,0.00010818,2]
[340087927,1728498640842,-150.0,0.00010818,2]
[340087929,1728498640852,-150.0,0.00010819,2]
[340087931,1728498640861,-1500.0,0.00010821,2]
[340087933,1728498640871,-150.0,0.00010821,2]
[340087935,1728498640880,-1500.0,0.00010822,2]
[340087937,1728498640889,-150.0,0.00010823,2]
[340087938,1728498640898,-150.0,0.00010826,2]
[340087940,1728498640907,-150.0,0.00010827,2]
[340087942,1728498640916,-150.0,0.00010828,2]
[340087944,1728498640925,-150.0,0.00010829,2]
[340087946,1728498640934,-150.0,0.00010831,2]
[340087948,1728498640945,-150.0,0.00010831,2]
[340087950,1728498640956,-1500.0,0.00010832,2]
[340087952,1728498640967,-150.0,0.0001084,2]
[340087954,1728498640976,-150.0,0.00010842,2]
[340087956,1728498640985,-150.0,0.00010843,2]
[340087958,1728498640995,-1500.0,0.00010843,2]
[340087960,1728498641008,-1500.0,0.00010844,2]
[340087962,1728498641018,-150.0,0.00010844,2]
[340087964,1728498641027,-150.0,0.00010844,2]
[340087966,1728498641037,-150.0,0.00010845,2]
[340087968,1728498641047,-150.0,0.00010846,2]
[340087970,1728498641058,-1500.0,0.00010848,2]
[340087972,1728498641067,-150.0,0.00010849,2]
[340087974,1728498641077,-150.0,0.0001085,2]
[340087976,1728498641086,-150.0,0.00010852,2]
[340087978,1728498641096,-1500.0,0.00010856,2]
[340087980,1728498641105,-150.0,0.00010857,2]
[340087982,1728498641115,-1500.0,0.0001087,2]
[340087984,1728498641124,-150.0,0.00010871,2]
[340087986,1728498641133,-150.0,0.00010871,2]
[340087988,1728498641143,-500.0,0.00010873,2]
[340087990,1728498641152,-150.0,0.00010873,2]
[340087992,1728498641161,-150.0,0.00010878,2]
[340087994,1728498641170,-150.0,0.00010879,2]
[340087996,1728498641180,-150.0,0.00010879,2]
[340087998,1728498641193,-143781.72753081,0.0001088,2]
[340088000,1728498641202,-150.0,0.0001088,2]
[340088002,1728498641211,-150.0,0.00010884,2]
[340088004,1728498641220,-150.0,0.00010886,2]
[340088006,1728498641229,-150.0,0.00010888,2]
[340088008,1728498641239,-150.0,0.00010888,2]
[340088010,1728498641249,-1500.0,0.0001089,2]
[340088012,1728498641258,-150.0,0.00010893,2]
[340088014,1728498641267,-1500.0,0.00010894,2]
[340088016,1728498641277,-150.0,0.00010896,2]
[340088018,1728498641287,-150.0,0.00010897,2]
[340088020,1728498641296,-150.0,0.00010898,2]
[340088022,1728498641305,-150.0,0.00010899,2]
[340088024,1728498641317,-313.995068,0.000109,2]
[340088026,1728498641326,-179.27909921,0.000109,2]
[340088028,1728498641335,-210.07864826,0.000109,2]
[340088030,1728498641343,-1000.0,0.000109,2]
[340088032,1728498641352,-150.0,0.00010904,2]
[340088034,1728498641361,-150.0,0.0001091,2]
[340088036,1728498641371,-150.0,0.00010912,2]
[340088038,1728498641382,-150.0,0.00010912,2]
[340088039,1728498641391,-150.0,0.00010912,2]
[340088040,1728498641400,-1500.0,0.00010915,2]
[340088041,1728498641409,-150.0,0.00010915,2]
[340088042,1728498641418,-153.71421815,0.00010916,2]
[340088043,1728498641427,-150.0,0.00010916,2]
[340088044,1728498641436,-150.0,0.00010918,2]
[340088045,1728498641445,-150.0,0.00010919,2]
[340088046,1728498641454,-150.0,0.00010921,2]
[340088047,1728498641465,-150.0,0.00010924,2]
[340088048,1728498641474,-1500.0,0.00010925,2]
[340088049,1728498641484,-150.0,0.00010928,2]
[340088050,1728498641493,-1500.0,0.00010933,2]
[340088052,1728498641502,-150.0,0.00010933,2]
[340088053,1728498641511,-1500.0,0.00010934,2]
[340088055,1728498641520,-150.0,0.00010936,2]
[340088057,1728498641530,-150.0,0.00010936,2]
[340088059,1728498641539,-150.0,0.00010937,2]
[340088061,1728498641548,-150.0,0.00010937,2]
[340088063,1728498641557,-150.0,0.00010938,2]
[340088065,1728498641571,-150.0,0.00010939,2]
[340088067,1728498641580,-150.0,0.0001094,2]
[340088069,1728498641589,-1050.91644365,0.00010943,2]
[340088071,1728498641598,-150.0,0.00010943,2]
[340088073,1728498641607,-150.0,0.00010944,2]
[340088075,1728498641616,-1500.0,0.00010945,2]
[340088077,1728498641625,-150.0,0.00010946,2]
[340088079,1728498641634,-150.0,0.00010947,2]
[340088081,1728498641643,-150.0,0.00010948,2]
[340088083,1728498641652,-150.0,0.00010948,2]
[340088085,1728498641662,-150.0,0.00010949,2]
[340088087,1728498641671,-150.0,0.00010951,2]
[340088089,1728498641681,-150.0,0.00010954,2]
[340088091,1728498641690,-150.0,0.00010955,2]
[340088093,1728498641700,-150.0,0.00010955,2]
[340088095,1728498641710,-150.0,0.00010955,2]
[340088097,1728498641720,-150.0,0.00010956,2]
[340088099,1728498641730,-150.0,0.00010957,2]
[340088101,1728498641739,-150.0,0.00010958,2]
[340088103,1728498641749,-176.25,0.00010959,2]
[340088105,1728498641759,-162.34,0.00010959,2]
[340088107,1728498641767,-355.52,0.00010959,2]
[340088109,1728498641777,-250.0,0.00010959,2]
[340088111,1728498641787,-497.815,0.00010959,2]
[340088113,1728498641796,-165.45,0.00010959,2]
[340088115,1728498641806,-150.0,0.00010959,2]
[340088117,1728498641819,-150.0,0.00010959,2]
[340088119,1728498641829,-150.0,0.00010959,2]
[340088121,1728498641838,-393.10860168,0.00010963,2]
[340088123,1728498641847,-150.0,0.00010963,2]
[340088125,1728498641857,-150.0,0.00010964,2]
[340088127,1728498641866,-1500.0,0.00010968,2]
[340088129,1728498641876,-150.0,0.00010968,2]
[340088131,1728498641885,-150.0,0.00010974,2]
[340088133,1728498641894,-150.0,0.00010975,2]
[340088135,1728498641904,-150.0,0.00010975,2]
[340088137,1728498641913,-150.0,0.00010977,2]
[340088139,1728498641922,-150.0,0.00010979,2]
[340088141,1728498641932,-150.0,0.0001099,2]
[340088143,1728498641942,-1500.0,0.00010991,2]
[340088145,1728498641951,-150.0,0.00010992,2]
[340088147,1728498641960,-150.0,0.00010993,2]
[340088149,1728498641970,-150.0,0.00010993,2]
[340088150,1728498641979,-150.0,0.00010996,2]
[340088152,1728498641988,-150.0,0.00010996,2]
[340088153,1728498641997,-150.0,0.00010996,2]
[340088154,1728498642007,-2246.30042364,0.00010997,2]
[340088155,1728498642016,-836.15878453,0.00010999,2]
[340088156,1728498642025,-434.63782709,0.00010999,2]
[340088157,1728498642035,-811.0,0.00011,2]
[340088158,1728498642046,-1085603.4969711,0.00011,2]
[340088159,1728498642055,-1500.0,0.00011,2]
[340088160,1728498642065,-1500.0,0.00011,2]
[340088161,1728498642074,-1500.0,0.00011,2]
[340088162,1728498642083,-1825.46,0.00011,2]
[340088163,1728498642092,-6026576.24911993,0.00011,2]
[340088164,1728498642106,-82087.73027979,0.00011,2]
[340088170,1728498643207,-150.0,0.00010729,2]
[340088171,1728498643217,-150.0,0.00010729,2]
[340088172,1728498643226,-108.71870351,0.00010734,2]
[340088173,1728498643236,-41.28129649,0.00010734,2]
[340088174,1728498643245,-150.0,0.00010739,2]
[340088175,1728498643254,-150.0,0.0001074,2]
[340088176,1728498643263,-150.0,0.00010747,2]
[340088177,1728498643272,-150.0,0.0001075,2]
[340088178,1728498643282,-150.0,0.00010751,2]
[340088179,1728498643291,-150.0,0.00010752,2]
[340088180,1728498643300,-150.0,0.00010756,2]
[340088181,1728498643309,-138.71870351,0.00010765,2]
[340088182,1728498643322,-11.28129649,0.00010765,2]
[340088183,1728498643331,-150.0,0.00010765,2]
[340088184,1728498643340,-150.0,0.00010767,2]
[340088185,1728498643348,-150.0,0.00010768,2]
[340088186,1728498643357,-150.0,0.0001077,2]
[340088187,1728498643366,-150.0,0.00010771,2]
[340088188,1728498643375,-150.0,0.00010775,2]
[340088189,1728498643385,-150.0,0.00010777,2]
[340088190,1728498643394,-150.0,0.00010781,2]
[340088191,1728498643403,-150.0,0.00010784,2]
[340088192,1728498643412,-150.0,0.00010787,2]
[340088193,1728498643421,-150.0,0.0001079,2]
[340088194,1728498643430,-150.0,0.00010799,2]
[340088195,1728498643438,-150.0,0.00010799,2]
[340088196,1728498643447,-150.0,0.00010799,2]